bitfinex-derivatives/quotes_ETHF0:USTF0_20240915
["timestamp","ask_amount","ask_price","bid_price","bid_amount"]
[1726398829138,0.3987,2406.6,2406.5,0.3767]
[1726398830748,0.3987,2406.6,2406.4,0.3994]
[1726398834155,3.2078,2406.8,2406.4,0.3994]
[1726398834345,0.7747,2406.7,2406.4,0.3994]
[1726398837257,0.3807,2406.6,2406.4,0.3994]
[1726398839560,0.7747,2406.7,2406.4,0.3994]
[1726398843064,0.4024,2406.6,2406.4,0.3994]
[1726398843255,0.4024,2406.6,2406.3,4.78397002]
[1726398844263,0.4024,2406.6,2406.3,4.36907002]
[1726398846663,0.4024,2406.6,2406.4,0.4069]
[1726398849259,0.7747,2406.7,2406.4,0.4069]
[1726398851051,0.3924,2406.7,2406.5,0.4115]
[1726398851255,0.3924,2406.7,2406.6,0.4116]
[1726398851457,3.2078,2406.8,2406.6,0.4116]
[1726398851962,3.2078,2406.8,2406.7,0.403]
[1726398853563,0.7996,2406.9,2406.7,0.403]
[1726398854153,0.4019,2406.9,2406.7,0.403]
[1726398856768,3.5837,2407.1,2406.7,0.403]
[1726398859862,0.3759,2407.1,2406.7,0.403]
[1726398860671,3.5837,2407.1,2406.7,0.403]
[1726398861165,0.3982,2407.0,2406.7,0.403]
[1726398862974,3.606,2407.0,2406.7,0.403]
[1726398864776,3.606,2407.0,2406.6,0.4116]
[1726398876181,3.606,2407.0,2406.6,1.49943356]
[1726398876574,3.606,2407.0,2406.6,0.4116]
[1726398877775,3.606,2407.0,2406.6,1.49943356]
[1726398877976,3.606,2407.0,2406.6,0.4116]
[1726398878176,0.3982,2407.0,2406.6,0.4116]
[1726398878483,3.606,2407.0,2406.6,0.4116]
[1726398878884,3.606,2407.0,2406.6,1.49943356]
[1726398879181,3.606,2407.0,2406.6,0.4116]
[1726398882685,3.2078,2406.7,2406.5,0.3827]
[1726398882887,0.7734,2406.6,2406.5,0.3827]
[1726398883682,0.7734,2406.6,2406.4,1.08783356]
[1726398883874,0.7734,2406.6,2406.3,1.87733356]
[1726398884376,0.7734,2406.6,2406.4,1.08783356]
[1726398887387,3.2078,2406.9,2406.4,1.08783356]
[1726398887592,4.0277,2406.9,2406.4,1.08783356]
[1726398887891,4.0277,2406.9,2406.5,1.08783356]
[1726398888092,4.0277,2406.9,2406.3,2.42290177]
[1726398888093,4.0277,2406.9,2406.4,1.08783356]
[1726398889998,4.35501139,2406.9,2406.4,1.08783356]
[1726398891694,4.35501139,2406.9,2406.5,1.08783356]
[1726398892099,4.35501139,2406.9,2406.6,0.3889]
[1726398893096,1.14721139,2406.9,2406.6,0.3889]
[1726398893289,4.35501139,2406.9,2406.6,0.3889]
[1726398894093,1.14721139,2406.9,2406.6,0.3889]
[1726398894293,4.35501139,2406.9,2406.6,0.3889]
[1726398897495,1.14721139,2406.9,2406.6,0.3889]
[1726398897897,1.14721139,2406.9,2406.7,0.4047]
[1726398900701,1.14721139,2406.9,2406.4,1.08783356]
[1726398900905,1.14721139,2406.9,2406.4,1.86803356]
[1726398901205,3.2078,2406.6,2406.4,1.08783356]
[1726398901509,0.797,2406.5,2406.4,1.08783356]
[1726398902315,0.797,2406.5,2406.3,1.63340177]
[1726398902996,0.797,2406.5,2406.2,0.7802]
[1726398904905,3.2078,2406.3,2405.9,3.3048]
[1726398905104,0.386,2406.2,2405.9,0.8009]
[1726398905303,0.3806,2406.1,2405.9,0.8009]
[1726398909612,0.3806,2406.1,2405.6,7.7514]
[1726398909825,0.3806,2406.1,2405.7,0.8151]
[1726398910011,0.3806,2406.1,2405.7,5.21210154]
[1726398911107,0.3806,2406.1,2405.7,6.30103883]
[1726398912417,0.3806,2406.1,2405.7,5.21210154]
[1726398921012,0.3806,2406.1,2405.7,0.8151]
[1726398921217,4.5404,2406.0,2405.5,0.4014]
[1726398921520,0.3836,2406.0,2405.5,0.7899]
[1726398921715,0.3963,2405.9,2405.5,0.7899]
[1726398925317,0.72808804,2405.9,2405.5,0.7899]
[1726398928117,3.2078,2405.8,2405.5,0.7899]
[1726398928316,0.3996,2405.7,2405.5,0.7899]
[1726398929517,4.1568,2405.6,2405.1,0.097]
[1726398929821,3.2078,2405.5,2405.0,1.1599]
[1726398930215,3.2078,2405.2,2405.0,0.7729]
[1726398930512,0.7946,2405.1,2405.0,0.7729]
[1726398930718,0.7946,2405.1,2404.7,4.5178]
[1726398930919,0.7946,2405.1,2404.8,0.7881]
[1726398935125,0.7946,2405.1,2404.8,3.9959]
[1726398938830,1.12416541,2405.1,2404.8,3.9959]
[1726398940124,1.12416541,2405.1,2404.8,0.7881]
[1726398940330,0.71546541,2405.1,2404.8,0.7881]
[1726398941132,3.2078,2405.2,2404.8,0.7881]
[1726398942728,3.5961,2405.2,2404.8,0.7881]
[1726398943326,0.3796,2405.1,2404.8,0.7881]
[1726398955230,0.7896,2405.1,2404.8,0.7881]
[1726398957841,0.3796,2405.1,2404.8,0.7881]
[1726398968447,3.2078,2405.2,2404.8,0.7881]
[1726398974342,0.097,2405.4,2404.9,5.79036636]
[1726398974546,4.873,2405.6,2405.0,1.08893729]
[1726398974753,4.873,2405.6,2405.1,4.67623729]
[1726398974944,4.873,2405.6,2405.2,0.4072]
[1726398975345,4.873,2405.6,2405.2,1.49613729]
[1726398975957,3.2078,2405.8,2405.2,1.49613729]
[1726398976144,3.94585755,2405.8,2405.3,5.61539481]
[1726398976658,3.94585755,2405.8,2405.4,0.3999]
[1726398976956,3.94585755,2405.8,2405.5,0.3762]
[1726398977145,3.94585755,2405.8,2405.6,0.3956]
[1726398977364,3.6184,2405.8,2405.6,0.3956]
[1726398977549,3.2078,2405.8,2405.7,0.3999]
[1726398979052,3.2078,2405.8,2405.7,4.5567]
[1726398979249,3.2078,2405.8,2405.7,0.3999]
[1726398984157,0.097,2406.1,2405.7,0.3999]
[1726398984345,4.33080261,2406.2,2405.7,0.3999]
[1726398995461,4.0017,2406.2,2405.7,0.3999]
[1726398997175,4.0017,2406.2,2405.8,4.82296434]
[1726398997466,4.0017,2406.2,2405.9,0.4014]
[1726398997467,0.7939,2406.2,2405.9,0.4014]
[1726398997666,0.7939,2406.2,2406.0,0.3787]
[1726398997871,0.7939,2406.2,2406.0,0.7557]
[1726399006767,0.7939,2406.2,2406.0,3.9635]
[1726399006980,0.7939,2406.2,2406.0,0.7557]
[1726399010172,0.391,2406.2,2406.0,0.7557]
[1726399011673,3.5321555,2406.5,2406.1,4.79559311]
[1726399011875,3.2078,2406.5,2406.1,4.79559311]
[1726399029482,0.097,2406.8,2406.1,4.79559311]
[1726399029682,0.097,2406.8,2406.2,5.91969263]
[1726399029983,0.097,2406.8,2406.3,6.14938808]
[1726399030189,0.8008,2406.9,2406.5,3.2078]
[1726399030390,0.8008,2406.9,2406.6,0.3994]
[1726399030587,0.097,2407.1,2406.7,0.3798]
[1726399030896,0.112,2407.3,2406.7,0.3798]
[1726399030897,0.8008,2407.3,2406.8,4.85978276]
[1726399031284,1.12974065,2407.3,2406.8,8.06758276]
[1726399031794,0.8008,2407.3,2406.8,8.06758276]
[1726399032996,0.4076,2407.3,2406.8,8.06758276]
[1726399033488,0.4076,2407.3,2407.1,3.2078]
[1726399033691,0.72680514,2407.5,2407.2,1.1752]
[1726399033884,0.3884,2407.5,2407.2,5.72702755]
[1726399034084,0.097,2407.9,2407.2,5.72702755]
[1726399034287,0.097,2407.9,2407.4,3.2078]
[1726399034288,0.3942,2407.8,2407.4,3.2078]
[1726399034689,0.3942,2407.8,2407.5,4.67993425]
[1726399035090,0.3942,2407.8,2407.6,0.7619]
[1726399035289,0.3942,2407.8,2407.5,4.67993425]
[1726399035494,0.3942,2407.8,2407.4,3.2078]
[1726399035695,0.3942,2407.8,2407.3,0.7619]
[1726399035696,4.0157,2407.8,2407.3,0.7619]
[1726399035899,0.8079,2407.8,2407.3,0.7619]
[1726399036096,0.8079,2407.8,2407.3,3.9697]
[1726399036697,0.8079,2407.8,2407.3,0.7619]
[1726399037200,0.8079,2407.8,2407.0,3.2078]
[1726399037418,3.2078,2407.5,2407.0,0.7866]
[1726399037589,0.7888,2407.4,2407.0,0.7866]
[1726399042101,0.7888,2407.4,2407.0,3.9944]
[1726399050896,0.7888,2407.4,2407.0,0.7866]
[1726399054904,0.7888,2407.4,2407.0,3.9944]
[1726399056802,4.05118238,2407.8,2407.0,3.9944]
[1726399057003,0.7968,2407.7,2407.0,3.9944]
[1726399057305,4.05118238,2407.8,2407.1,4.76631332]
[1726399057306,3.63748238,2407.8,2407.1,4.76631332]
[1726399057510,3.63748238,2407.8,2407.3,3.2078]
[1726399057511,0.097,2407.8,2407.3,3.2078]
[1726399057699,0.7968,2407.9,2407.4,0.7746]
[1726399057903,0.7968,2407.9,2407.4,5.54091332]
[1726399059704,3.63177103,2408.1,2407.4,5.54091332]
[1726399060507,0.42397103,2408.1,2407.4,5.54091332]
[1726399060912,0.42397103,2408.1,2407.6,3.2078]
[1726399061121,0.32697103,2408.1,2407.7,0.4064]
[1726399061416,0.7633,2408.2,2407.8,0.8002]
[1726399062714,13.09987909,2408.4,2407.8,4.008]
[1726399062919,0.7681,2408.3,2407.8,4.008]
[1726399069430,0.7681,2408.3,2407.9,4.77859876]
[1726399070320,3.9759,2408.3,2407.9,4.77859876]
[1726399071217,0.7681,2408.3,2407.9,4.77859876]
[1726399071720,3.9759,2408.3,2407.9,4.77859876]
[1726399075518,0.7681,2408.3,2407.9,4.77859876]
[1726399075719,3.9759,2408.3,2407.9,4.77859876]
[1726399077527,0.7681,2408.3,2407.9,4.77859876]
[1726399077721,3.9759,2408.3,2407.9,4.77859876]
[1726399078524,0.7681,2408.3,2407.9,4.77859876]
[1726399079325,0.3879,2408.3,2407.9,4.77859876]
[1726399079517,10.12157889,2408.4,2407.9,4.77859876]
[1726399081833,9.79507909,2408.4,2407.9,4.77859876]
[1726399082028,9.79507909,2408.4,2407.9,7.98639876]
[1726399082446,9.79507909,2408.4,2407.9,4.77859876]
[1726399082727,9.79507909,2408.4,2407.9,7.98639876]
[1726399082939,9.79507909,2408.4,2407.9,4.77859876]
[1726399083636,9.79507909,2408.4,2407.9,7.98639876]
[1726399090038,9.79507909,2408.4,2407.9,4.77859876]
[1726399090938,9.79507909,2408.4,2408.0,3.2078]
[1726399091332,9.79507909,2408.4,2408.1,0.3895]
[1726399091532,9.79507909,2408.4,2408.2,0.3774]
[1726399092129,9.79507909,2408.4,2408.1,0.3895]
[1726399100244,9.79507909,2408.4,2407.8,0.4002]
[1726399100546,9.79507909,2408.4,2407.9,4.95590452]
[1726399100743,9.79507909,2408.4,2407.9,4.55970452]
[1726399100744,3.2078,2408.3,2407.9,4.55970452]
[1726399100938,3.2078,2408.3,2407.8,0.4002]
[1726399100939,3.2078,2408.0,2407.8,0.4002]
[1726399101140,0.7938,2407.9,2407.8,0.4002]
[1726399102642,4.9466,2407.9,2407.4,3.10584323]
[1726399102848,1.1791,2407.9,2407.5,0.3823]
[1726399103439,5.3327,2407.9,2407.3,1.08893729]
[1726399103643,1.1791,2407.9,2407.2,1.85343729]
[1726399104343,1.51291743,2407.9,2407.2,1.85343729]
[1726399104552,1.51291743,2407.9,2407.3,3.2078]
[1726399104749,1.51291743,2407.9,2407.2,1.85343729]
[1726399105443,1.51291743,2407.9,2407.3,1.08893729]
[1726399105643,1.51291743,2407.9,2407.2,1.85343729]
[1726399106350,1.51291743,2407.9,2407.2,0.7645]
[1726399107051,1.51291743,2407.9,2407.3,3.2078]
[1726399112854,1.51291743,2407.9,2407.2,0.7645]
[1726399113357,1.12761743,2407.9,2407.2,3.9723]
[1726399113660,1.12761743,2407.9,2407.2,5.06123729]
[1726399113844,1.12761743,2407.9,2407.2,1.85343729]
[1726399114157,1.12761743,2407.9,2407.3,3.2078]
[1726399114654,1.12761743,2407.9,2407.2,1.85343729]
[1726399115049,1.12761743,2407.9,2407.3,3.2078]
[1726399115247,1.12761743,2407.9,2407.2,0.7645]
[1726399115452,1.12761743,2407.9,2407.2,1.85343729]
[1726399116152,1.12761743,2407.9,2407.2,0.7645]
[1726399116461,1.12761743,2407.9,2407.2,1.85343729]
[1726399119060,1.12761743,2407.9,2407.2,1.85187544]
[1726399119254,1.12761743,2407.9,2407.2,0.7645]
[1726399122955,3.2078,2408.0,2407.2,0.7645]
[1726399123161,3.2078,2408.0,2407.3,7.58019225]
[1726399123162,3.6057,2408.0,2407.3,7.58019225]
[1726399123658,3.6057,2408.0,2407.3,4.37239225]
[1726399125755,0.3813,2407.9,2407.3,4.37239225]
[1726399133859,3.93938002,2408.0,2407.3,4.37239225]
[1726399140264,3.2078,2407.7,2407.3,4.37239225]
[1726399140466,3.2078,2407.7,2407.2,0.7645]
[1726399140863,3.2078,2407.7,2407.2,3.9723]
[1726399141457,4.03638002,2408.0,2407.2,5.05967544]
[1726399141661,4.03638002,2408.0,2407.2,0.7645]
[1726399141869,4.03638002,2408.0,2407.2,3.9723]
[1726399142069,4.03638002,2408.0,2407.2,5.05967544]
[1726399145868,4.03638002,2408.0,2407.3,1.08737544]
[1726399146071,4.03638002,2408.0,2407.2,5.05967544]
[1726399146072,3.93938002,2408.0,2407.2,5.05967544]
[1726399146278,3.93938002,2408.0,2407.3,1.08737544]
[1726399148276,3.93938002,2408.0,2407.4,1.08737544]
[1726399148477,3.93938002,2408.0,2407.5,0.4138]
[1726399148678,3.93938002,2408.0,2407.6,0.397]
[1726399151484,3.2078,2407.7,2407.6,0.397]
[1726399151681,0.3993,2407.9,2407.6,0.397]
[1726399156181,3.2078,2407.7,2407.6,0.397]
[1726399156888,3.2078,2407.7,2407.2,3.5848]
[1726399156889,7.3614,2407.7,2407.2,0.377]
[1726399157079,0.8221,2407.6,2407.3,0.7946]
[1726399160882,1.1529356,2407.6,2407.3,0.7946]
[1726399163388,0.8221,2407.6,2407.3,0.7946]
[1726399164795,0.4094,2407.6,2407.3,0.7946]
[1726399165793,0.41,2407.5,2407.3,0.7946]
[1726399166596,3.2078,2407.4,2407.3,0.3992]
[1726399169285,3.2078,2407.4,2406.9,1.48777544]
[1726399169286,3.2078,2407.4,2406.9,1.08737544]
[1726399169485,3.2078,2407.4,2406.9,0.8238]
[1726399171191,3.2078,2407.1,2406.9,0.8238]
[1726399172093,3.2078,2407.4,2406.9,0.8238]
[1726399173489,3.53411655,2407.4,2406.9,0.8238]
[1726399174296,3.53411655,2407.4,2406.9,4.0316]
[1726399174502,3.53411655,2407.4,2406.9,0.8238]
[1726399174691,3.53411655,2407.4,2406.9,4.0316]
[1726399174891,3.53411655,2407.4,2406.9,0.8238]
[1726399175288,0.32631655,2407.4,2406.9,0.8238]
[1726399175592,3.6178,2407.5,2406.9,0.8238]
[1726399175793,3.53819573,2407.5,2406.9,5.11897544]
[1726399176000,3.2078,2407.5,2406.9,5.11897544]
[1726399176194,0.4985,2407.7,2407.0,5.59444837]
[1726399176195,0.097,2407.7,2407.0,5.59444837]
[1726399176396,0.097,2407.7,2407.2,3.2078]
[1726399176599,0.097,2408.0,2407.3,0.3905]
[1726399176798,0.8034,2408.1,2407.4,0.3796]
[1726399176994,3.2078,2407.9,2407.5,0.3965]
[1726399177894,1.1292965,2408.1,2407.5,0.3965]
[1726399183205,1.1292965,2408.1,2407.6,4.74950301]
[1726399183206,0.8034,2408.1,2407.6,4.74950301]
[1726399183509,0.4019,2408.1,2407.7,0.4013]
[1726399183805,0.4019,2408.1,2407.7,0.8101]
[1726399188806,3.92175536,2408.3,2407.7,0.8101]
[1726399189007,3.92175536,2408.3,2407.8,4.73945073]
[1726399189212,3.92175536,2408.3,2407.9,0.4003]
[1726399189611,3.92175536,2408.3,2408.0,0.3942]
[1726399189913,3.5848,2408.3,2408.1,0.3986]
[1726399191112,0.377,2408.3,2408.1,0.3986]
[1726399191907,10.18512885,2408.4,2408.1,0.3986]
[1726399192208,10.58182885,2408.4,2408.1,0.3986]
[1726399202221,0.4097,2408.3,2408.1,0.3986]
[1726399202619,0.4097,2408.3,2408.0,3.602]
[1726399203917,0.4097,2408.3,2408.0,4.0162]
[1726399204221,10.58182885,2408.4,2408.0,4.0162]
[1726399205815,0.787,2408.4,2408.0,4.0162]
[1726399208527,0.3903,2408.4,2408.0,4.0162]
[1726399209428,0.73701082,2408.6,2408.0,4.0162]
[1726399209628,1.11771082,2408.6,2408.0,4.0162]
[1726399219330,1.11771082,2408.6,2408.1,4.67407567]
[1726399221621,0.3807,2408.6,2408.1,4.67407567]
[1726399222939,3.53475749,2408.7,2408.1,4.67407567]
[1726399226432,3.53475749,2408.7,2408.1,5.76145111]
[1726399229334,3.53475749,2408.7,2408.0,1.89577544]
[1726399231330,3.53475749,2408.7,2408.0,5.10357544]
[1726399234239,3.53475749,2408.7,2408.1,1.08737544]
[1726399241438,3.53475749,2408.7,2408.0,0.8084]
[1726399242941,3.53475749,2408.7,2408.0,1.89577544]
[1726399243936,3.53475749,2408.7,2408.1,4.81910884]
[1726399244537,3.53475749,2408.7,2408.2,3.2078]
[1726399244835,3.53475749,2408.7,2408.3,0.3773]
[1726399245044,3.53475749,2408.7,2408.4,0.4068]
[1726399245438,3.53475749,2408.7,2408.4,0.8033]
[1726399251245,0.8009,2408.8,2408.4,0.8033]
[1726399251443,0.3991,2408.8,2408.4,5.09847544]
[1726399251643,0.3991,2408.8,2408.5,1.08737544]
[1726399251847,0.3982,2409.0,2408.5,4.29517544]
[1726399252040,0.7892,2409.0,2408.6,1.08737544]
[1726399252249,0.391,2409.0,2408.7,0.4]
[1726399252535,0.391,2409.0,2408.8,0.3985]
[1726399256247,0.33764706,2409.1,2408.8,0.3985]
[1726399256456,0.3982,2409.2,2408.8,0.3985]
[1726399256647,3.2078,2409.0,2408.8,0.3985]
[1726399257847,0.3982,2409.2,2408.8,0.3985]
[1726399258752,0.72546592,2409.2,2408.8,0.3985]
[1726399259055,3.2078,2409.0,2408.8,0.3985]
[1726399259254,0.3764,2408.9,2408.8,0.3985]
[1726399259457,0.7663,2408.9,2408.8,0.3985]
[1726399265251,0.3764,2408.9,2408.8,0.3985]
[1726399272459,0.3764,2408.9,2408.7,0.3964]
[1726399272658,0.3956,2408.8,2408.7,0.3964]
[1726399273667,0.3956,2408.8,2408.5,0.4072]
[1726399275164,0.3956,2408.8,2408.2,0.7688]
[1726399275370,0.3956,2408.8,2408.3,0.3853]
[1726399283367,3.2078,2408.7,2408.3,0.3853]
[1726399283573,0.3795,2408.6,2408.3,0.3853]
[1726399283775,0.3827,2408.5,2408.2,0.3832]
[1726399283975,0.7587,2408.5,2408.2,0.3832]
[1726399288667,1.09198819,2408.5,2408.2,0.3832]
[1726399298880,0.7587,2408.5,2408.2,0.3832]
[1726399312192,3.2078,2408.4,2408.1,0.3913]
[1726399312392,0.7587,2408.5,2408.0,0.4005]
[1726399312597,0.7587,2408.5,2408.0,0.8015]
[1726399313197,3.2078,2408.4,2408.0,0.8015]
[1726399314190,3.9665,2408.5,2408.0,0.8015]
[1726399314896,0.7587,2408.5,2408.0,0.8015]
[1726399315194,3.9665,2408.5,2408.0,0.8015]
[1726399315893,3.9665,2408.5,2408.0,1.88887544]
[1726399316498,0.7587,2408.5,2408.0,1.88887544]
[1726399316691,0.7587,2408.5,2408.1,5.6527392]
[1726399316902,0.7587,2408.5,2408.2,0.4071]
[1726399317390,0.7587,2408.5,2408.3,0.3987]
[1726399317786,0.7587,2408.5,2408.1,5.6527392]
[1726399318091,3.9665,2408.5,2408.1,1.08737544]
[1726399318292,3.9665,2408.5,2408.0,2.27147544]
[1726399319092,3.9665,2408.5,2408.1,1.08737544]
[1726399320583,3.9665,2408.5,2408.0,1.89607544]
[1726399320790,3.2078,2408.2,2408.0,0.8087]
[1726399321003,0.7798,2408.1,2408.0,0.8087]
[1726399324206,3.2078,2408.6,2408.0,0.8087]
[1726399324399,0.7822,2408.5,2408.0,0.8087]
[1726399324592,0.7822,2408.5,2408.1,0.4061]
[1726399325295,3.2078,2408.4,2408.0,0.8087]
[1726399326694,3.2078,2408.1,2407.8,0.4061]
[1726399326896,0.7855,2408.0,2407.7,0.7756]
[1726399327197,0.7855,2408.0,2407.5,1.08737544]
[1726399327398,0.393,2407.9,2407.5,0.3989]
[1726399327701,3.2078,2407.8,2407.5,0.3989]
[1726399328092,0.4104,2407.7,2407.5,0.3989]
[1726399328492,0.4011,2407.6,2407.5,0.3989]
[1726399337111,0.4011,2407.6,2407.4,0.4145]
[1726399337411,0.4011,2407.6,2407.2,3.6012]
[1726399337716,0.4011,2407.6,2407.2,3.9974]
[1726399340910,3.2078,2407.4,2406.8,1.18437544]
[1726399341108,3.2078,2406.9,2406.5,1.3102]
[1726399341312,3.2078,2406.9,2406.5,1.2132]
[1726399341711,3.2078,2406.6,2406.5,1.2132]
[1726399352323,3.2078,2406.9,2406.5,1.2132]
[1726399353129,3.2078,2406.6,2406.5,1.2132]
[1726399369430,0.32465216,2407.0,2406.5,1.2132]
[1726399369632,3.2078,2406.7,2406.5,1.2132]
[1726399373639,0.97376124,2407.1,2406.5,1.2132]
[1726399373838,3.2078,2406.6,2406.5,1.2132]
[1726399375640,3.2078,2406.7,2406.5,1.2132]
[1726399377744,7.363,2406.7,2406.1,0.097]
[1726399377939,0.97376124,2407.1,2405.9,7.4498]
[1726399377940,3.2078,2406.4,2406.2,0.7762]
[1726399380647,3.2078,2406.7,2406.2,0.7762]
[1726399383645,3.2078,2406.7,2406.2,1.86357544]
[1726399383851,3.2078,2406.7,2406.2,0.7762]
[1726399384054,3.2078,2406.7,2406.2,1.86357544]
[1726399385550,3.2078,2406.7,2406.3,1.08737544]
[1726399385855,3.2078,2406.7,2406.4,0.3955]
[1726399386353,3.2078,2406.7,2406.5,0.3836]
[1726399388848,3.2078,2406.7,2406.6,0.4005]
[1726399417965,0.7255851,2406.9,2406.6,0.4005]
[1726399418359,3.2078,2406.7,2406.6,0.4005]
[1726399419667,3.2078,2406.7,2406.6,4.5557]
[1726399419874,0.097,2407.1,2406.6,17.1170937]
[1726399420070,3.2078,2407.2,2406.8,1.0903279]
[1726399420369,3.2078,2407.2,2406.9,0.8]
[1726399423067,3.2078,2407.2,2407.0,0.4114]
[1726399434978,3.2078,2407.3,2407.0,0.4114]
[1726399442776,3.4628,2407.3,2407.0,0.4114]
[1726399447589,3.2078,2407.1,2407.0,0.4114]
[1726399448482,0.255,2407.3,2407.0,0.4114]
[1726399448787,3.2078,2407.1,2407.0,0.4114]
[1726399452482,3.2078,2407.1,2406.9,0.8]
[1726399452989,3.2078,2407.1,2406.9,0.395]
[1726399453190,1.0342,2407.0,2406.9,0.395]
[1726399453488,0.7792,2407.0,2406.9,0.395]
[1726399453687,0.3992,2407.0,2406.9,0.395]
[1726399455490,3.2078,2407.1,2406.9,0.395]
[1726399456782,3.2078,2407.1,2407.0,0.8151]
[1726399493306,0.097,2407.6,2407.0,24.72640177]
[1726399493513,3.3048,2407.8,2407.4,1.09050916]
[1726399493718,3.2078,2407.8,2407.5,1.49910916]
[1726399494313,3.2078,2407.8,2407.5,0.4086]
[1726399501818,0.2551,2407.7,2407.5,0.4086]
[1726399502917,0.2551,2407.7,2407.0,5.31750916]
[1726399502918,4.1536,2407.6,2407.0,5.31750916]
[1726399503113,4.1536,2407.6,2406.9,2.22540916]
[1726399503114,3.2078,2407.2,2406.9,2.22540916]
[1726399503311,3.2078,2407.2,2406.9,1.1349]
[1726399503512,0.41528,2407.4,2406.9,2.22540916]
[1726399503718,0.41528,2407.4,2406.9,1.1349]
[1726399504620,3.2078,2407.2,2406.9,1.1349]
[1726399505013,3.62312,2407.2,2406.9,1.1349]
[1726399505226,4.44492,2407.2,2406.9,1.1349]
[1726399518742,0.41533,2407.1,2406.9,1.1349]
[1726399519031,0.41533,2407.1,2406.4,1.18750916]
[1726399519032,0.41537,2406.9,2406.4,1.18750916]
[1726399519238,0.41537,2406.9,2406.7,0.3914]
[1726399519239,3.62317,2406.9,2406.7,0.3914]
[1726399520835,3.96039952,2406.9,2406.7,0.3914]
[1726399531254,0.41539,2406.8,2406.5,0.7861]
[1726399531447,0.41539,2406.8,2406.6,0.4087]
[1726399531647,0.4154,2406.7,2406.6,0.4087]
[1726399531841,0.4154,2406.7,2406.5,0.7861]
[1726399532039,0.791,2406.8,2406.5,0.7861]
[1726399532040,3.2078,2406.6,2406.5,0.3814]
[1726399532546,3.2078,2406.6,2406.3,0.4087]
[1726399532759,3.2078,2406.6,2406.3,0.7836]
[1726399532760,3.62322,2406.6,2406.3,0.7836]
[1726399533651,0.41544,2406.5,2406.3,0.7836]
[1726399534650,3.2078,2406.6,2406.3,0.7836]
[1726399535147,3.62322,2406.6,2406.3,0.7836]
[1726399536549,3.2078,2406.6,2406.3,0.7836]
[1726399539749,0.4154,2406.7,2406.3,0.7836]
[1726399540345,3.2078,2406.8,2406.3,0.7836]
[1726399540544,3.2078,2406.8,2406.4,0.41545]
[1726399540749,3.2078,2406.8,2406.4,4.97702706]
[1726399541151,0.41536,2407.0,2406.5,3.2078]
[1726399541353,0.41536,2407.0,2406.6,0.7957]
[1726399541652,0.41536,2407.0,2406.7,0.4095]
[1726399542544,7.62312184,2407.3,2406.7,0.4095]
[1726399542955,3.53512184,2407.3,2406.7,0.4095]
[1726399543158,3.79062184,2407.3,2406.7,0.4095]
[1726399543358,0.41534,2407.1,2406.7,0.4095]
[1726399546058,3.79062184,2407.3,2406.7,0.4095]
[1726399546363,0.41533,2407.1,2406.7,0.4095]
[1726399558277,1.19092,2407.2,2406.7,0.4095]
[1726399558477,0.41533,2407.1,2406.7,0.4095]
[1726399558779,3.2078,2407.0,2406.7,0.4095]
[1726399560372,3.62315,2407.0,2406.7,0.4095]
[1726399560576,1.46816,2406.9,2406.7,0.4095]
[1726399561078,1.0528,2406.9,2406.7,0.4095]
[1726399562282,1.0528,2406.9,2406.6,0.7957]
[1726399567676,1.0528,2406.9,2406.7,0.3883]
[1726399570692,0.7974,2406.9,2406.7,0.3883]
[1726399571786,0.4083,2406.9,2406.7,0.3883]
[1726399572174,3.62315,2407.0,2406.7,0.3883]
[1726399574489,3.87865,2407.0,2406.7,0.3883]
[1726399576083,3.4633,2407.0,2406.7,0.3883]
[1726399578592,3.87865,2407.0,2406.7,0.3883]
[1726399581295,0.67085,2407.0,2406.7,0.3883]
[1726399582493,0.2555,2407.0,2406.7,0.3883]
[1726399582684,0.4079,2406.9,2406.7,0.3883]
[1726399583989,0.41,2406.8,2406.7,0.3883]
[1726399586093,3.6178,2406.8,2406.7,0.3883]
[1726399586987,0.41,2406.8,2406.7,0.3883]
[1726399589393,0.4079,2406.9,2406.7,0.3883]
[1726399590792,0.4079,2406.9,2406.7,1.47880916]
[1726399594703,0.4079,2406.9,2406.7,0.3883]
[1726399594901,0.4079,2406.9,2406.7,1.47880916]
[1726399598602,1.04625,2407.0,2406.7,1.47880916]
[1726399600505,0.6309,2407.0,2406.7,1.47880916]
[1726399600700,1.04625,2407.0,2406.7,1.47880916]
[1726399601004,0.6309,2407.0,2406.7,1.47880916]
[1726399601201,1.04625,2407.0,2406.7,1.47880916]
[1726399601902,0.79075,2407.0,2406.7,1.47880916]
[1726399603602,0.41535,2407.0,2406.7,1.47880916]
[1726399604205,3.2078,2407.1,2406.7,1.47880916]
[1726399604401,3.2078,2407.1,2406.8,1.09050916]
[1726399604607,3.2078,2407.1,2406.9,0.3872]
[1726399604806,3.2078,2407.1,2407.0,0.3968]
[1726399605303,7.3622,2407.1,2407.0,0.3968]
[1726399606614,3.2078,2407.1,2407.0,0.3968]
[1726399609706,7.3622,2407.1,2407.0,0.3968]
[1726399609912,7.3622,2407.1,2406.9,0.7778]
[1726399610109,3.2078,2407.1,2406.9,0.7778]
[1726399612914,0.41538,2406.9,2406.6,1.09050916]
[1726399613213,3.2078,2406.8,2406.6,1.48430916]
[1726399613405,4.25498,2406.8,2406.5,0.7853]
[1726399616920,0.4154,2406.7,2406.5,0.7853]
[1726399618419,0.7987,2406.7,2406.5,0.7853]
[1726399620122,4.25499,2406.8,2406.5,0.7853]
[1726399620323,3.99959,2406.8,2406.5,0.7853]
[1726399621124,3.62319,2406.8,2406.5,0.7853]
[1726399622511,0.41543,2406.6,2406.4,0.3938]
[1726399622713,2.08949,2407.0,2406.4,1.1846]
[1726399622714,3.2078,2406.5,2406.4,1.1846]
[1726399626727,3.62323,2406.5,2406.4,1.1846]